bitfinex-derivatives/quotes_ETHF0:USTF0_20251013
["timestamp","ask_amount","ask_price","bid_price","bid_amount"]
[1760341555620,3.2078,4178.1,4178.0,0.97142]
[1760341555823,4.80956171,4178.3,4178.1,0.4305]
[1760341556019,4.80956171,4178.3,4178.2,0.3925]
[1760341556429,2.93975506,4178.3,4178.2,0.3925]
[1760341556620,3.2078,4179.1,4179.0,0.57882]
[1760341556933,3.2078,4179.1,4179.0,0.97132]
[1760341556934,6.31897748,4179.1,4179.0,0.97132]
[1760341557130,3.11117748,4179.1,4179.0,0.97132]
[1760341557627,3.11117748,4179.1,4179.0,0.5409]
[1760341557838,6.74938748,4179.1,4178.5,0.1484]
[1760341558019,4.80956171,4178.6,4178.5,0.1484]
[1760341558422,7.88134564,4178.6,4178.5,0.1484]
[1760341558831,0.00213631,4179.2,4179.0,0.1484]
[1760341559132,7.91097113,4179.1,4179.0,0.1484]
[1760341559921,7.91097113,4179.1,4179.0,0.5409]
[1760341560325,7.91097113,4179.1,4178.5,3.3562]
[1760341560326,11.11877113,4179.1,4178.5,0.1484]
[1760341560533,6.30920942,4179.1,4179.0,0.5409]
[1760341560730,11.11877113,4179.1,4179.0,0.5409]
[1760341560929,0.43043,4178.9,4178.5,0.5409]
[1760341561130,8.01736171,4178.6,4178.1,0.3925]
[1760341561327,8.01736171,4178.6,4178.0,0.1484]
[1760341561328,4.80956171,4178.2,4178.0,0.1484]
[1760341561630,4.80956171,4178.2,4178.1,0.3925]
[1760341561935,7.95308149,4178.2,4178.1,0.3925]
[1760341563129,7.95308149,4178.2,4177.0,3.7487]
[1760341563332,8.01736171,4177.1,4177.0,0.5409]
[1760341563733,11.09474794,4177.1,4177.0,0.5409]
[1760341563930,11.09474794,4177.1,4176.6,0.3925]
[1760341564324,11.09474794,4177.1,4176.5,0.1510399]
[1760341564534,4.80956171,4176.6,4176.5,0.5435399]
[1760341565033,7.92707803,4176.6,4176.5,0.5435399]
[1760341565532,3.2078,4177.1,4176.9,0.43062]
[1760341565735,3.2078,4177.1,4177.0,0.5409]
[1760341566033,6.37784348,4177.1,4177.0,0.5409]
[1760341566424,6.37784348,4177.1,4176.6,0.43066]
[1760341566623,11.18740519,4177.1,4176.5,0.1510399]
[1760341566834,11.18740519,4177.1,4177.0,0.5409]
[1760341567335,3.17004348,4177.1,4177.0,0.5409]
[1760341567729,6.32545441,4177.2,4176.5,0.5435399]
[1760341568036,4.80956171,4176.6,4176.5,0.5435399]
[1760341568233,8.01736171,4176.6,4176.5,0.0026399]
[1760341568430,8.01736171,4176.6,4176.0,0.1484]
[1760341568431,0.43069,4176.4,4176.0,0.1484]
[1760341568730,4.80956171,4176.1,4176.0,0.1484]
[1760341569132,3.04884633,4176.1,4176.0,0.5409]
[1760341569344,3.05144493,4176.1,4176.0,0.54292794]
[1760341569929,3.48216493,4176.1,4176.0,0.54292794]
[1760341570128,6.68996493,4176.1,4176.0,0.00202794]
[1760341570829,6.25924493,4176.1,4175.0,0.1484]
[1760341571033,6.25924493,4176.1,4174.7,3.2078]
[1760341571034,4.80956171,4175.1,4174.7,3.2078]
[1760341571234,4.80956171,4175.1,4174.3,0.3925]
[1760341571235,0.43084,4174.9,4174.3,0.3925]
[1760341571427,4.80956171,4174.6,4174.3,0.3925]
[1760341571631,4.80956171,4174.6,4173.7,0.23959556]
[1760341571632,8.01736171,4174.6,4173.7,3.2078]
[1760341571833,4.80956171,4173.8,4173.7,3.2078]
[1760341572029,4.80956171,4173.8,4173.7,3.6003]
[1760341572229,7.86850038,4173.8,4173.2,3.2078]
[1760341572435,3.05893867,4173.8,4173.2,3.6003]
[1760341572743,4.80956171,4173.3,4173.2,4.03132]
[1760341572927,4.80956171,4173.3,4173.2,4.03303973]
[1760341573133,7.9939455,4173.3,4173.2,4.03303973]
[1760341573332,7.9939455,4173.3,4173.2,3.60201973]
[1760341573527,7.9939455,4173.3,4173.2,0.39421973]
[1760341574038,8.01736171,4174.1,4173.6,0.3925]
[1760341574428,3.10625679,4174.0,4173.6,0.3925]
[1760341574834,3.10625679,4174.0,4173.8,0.3925]
[1760341575035,3.10625679,4174.0,4173.7,0.43096]
[1760341575235,3.10625679,4174.0,4173.9,0.3925]
[1760341575637,3.10625679,4174.0,4173.9,0.82344]
[1760341575836,1.28347909,4175.4,4173.9,0.82344]
[1760341575837,3.2078,4174.6,4174.5,0.97178]
[1760341576042,1.26585791,4176.1,4175.0,0.5409]
[1760341576043,4.80956171,4175.1,4175.0,0.5409]
[1760341576636,7.97468135,4175.1,4174.7,0.43085]
[1760341576939,7.97468135,4175.1,4174.5,0.57928]
[1760341577136,4.80956171,4174.6,4174.5,0.57928]
[1760341577433,7.94747945,4174.6,4174.5,0.5409]
[1760341577634,7.94747945,4174.6,4174.0,0.1484]
[1760341577835,4.80956171,4174.1,4174.0,0.1484]
[1760341578034,4.80956171,4174.1,4173.6,0.82347]
[1760341578235,7.8912749,4174.1,4174.0,0.5409]
[1760341578434,7.8912749,4174.1,4173.4,0.3925]
[1760341578742,3.2078,4173.9,4173.4,0.3925]
[1760341579149,3.07658423,4173.8,4173.2,3.64053973]
[1760341579645,4.80956171,4173.6,4173.2,3.61151973]
[1760341579832,4.80956171,4173.6,4173.4,0.43099]
[1760341580035,3.07658423,4173.5,4173.2,0.00171973]
[1760341580341,3.2078,4173.4,4173.2,0.00171973]
[1760341580730,3.2078,4173.4,4172.2,3.6098]
[1760341580731,3.17374156,4173.3,4172.2,3.6098]
[1760341580938,4.80956171,4172.3,4172.2,0.83311]
[1760341581136,3.2078,4172.9,4172.5,0.1553]
[1760341581338,4.80956171,4172.7,4172.5,0.1553]
[1760341581542,4.80956171,4172.7,4172.1,0.43113]
[1760341581747,4.80956171,4172.2,4172.1,0.0023048]
[1760341582040,4.80956171,4172.2,4172.0,8.0]
[1760341582041,7.93100693,4172.2,4172.0,8.0]
[1760341582242,7.93100693,4172.2,4171.2,3.44753629]
[1760341582446,4.80956171,4171.6,4171.2,0.23973629]
[1760341582739,7.93100693,4171.6,4171.3,0.43121]
[1760341583139,7.93100693,4171.6,4171.5,0.15098905]
[1760341583343,3.12144522,4171.6,4171.5,0.15098905]
[1760341583742,4.80956171,4171.7,4171.6,0.43118]
[1760341584044,7.88298349,4171.7,4171.6,0.43118]
[1760341584244,7.88298349,4171.7,4171.5,0.15098905]
[1760341584446,7.88298349,4171.7,4171.0,0.5573]
[1760341584645,4.80956171,4171.1,4170.4,0.402]
[1760341584945,4.80956171,4170.6,4169.8,0.402]
[1760341585144,3.2078,4170.7,4170.0,0.5573]
[1760341585346,4.80956171,4170.4,4170.2,0.402]
[1760341585546,3.17037889,4170.6,4170.5,0.1553]
[1760341585750,3.2078,4170.7,4170.5,0.1553]
[1760341585951,3.2078,4170.7,4170.6,0.402]
[1760341586250,6.36521414,4170.7,4170.6,0.402]
[1760341586749,3.15741414,4170.7,4170.6,0.402]
[1760341587251,3.11907723,4171.1,4171.0,0.98854]
[1760341587448,3.2078,4171.2,4171.1,0.402]
[1760341587654,8.01736171,4171.2,4171.1,0.402]
[1760341587853,11.56766894,4171.2,4170.6,0.402]
[1760341588053,6.32687723,4171.2,4171.1,0.402]
[1760341588254,3.11907723,4171.2,4171.1,3.6098]
[1760341588454,3.2078,4172.0,4171.9,0.43115]
[1760341588751,3.2078,4172.0,4171.0,1.2334]
[1760341588752,1.07813,4171.0,4168.5,4.62254786]
[1760341589055,3.2078,4169.6,4169.5,0.5573]
[1760341589451,6.3525726,4169.6,4169.0,0.1553]
[1760341589651,0.43146,4169.0,4168.0,0.1553]
[1760341589851,8.01736171,4168.1,4168.0,0.15710307]
[1760341590152,11.20023076,4168.1,4168.0,0.15710307]
[1760341590349,6.39066905,4168.1,4168.0,0.15710307]
[1760341590654,11.20023076,4168.1,4168.0,0.15710307]
[1760341591558,0.43159,4167.7,4167.5,0.1553]
[1760341591750,6.39066905,4168.1,4167.5,0.5573]
[1760341591751,8.01736171,4167.6,4167.5,0.5573]
[1760341591954,11.10948988,4167.6,4167.5,0.5573]
[1760341592658,3.2078,4168.6,4168.5,0.5573]
[1760341593060,3.2078,4168.6,4167.5,0.15817802]
[1760341593255,4.80956171,4167.6,4167.0,0.1553]
[1760341593456,4.80956171,4167.5,4167.0,0.1553]
[1760341593664,7.95519053,4167.5,4167.0,0.1553]
[1760341593958,3.2078,4167.1,4167.0,0.1553]
[1760341594158,0.43166,4167.0,4166.5,0.1553]
[1760341594366,4.80956171,4166.9,4166.5,0.15806252]
[1760341594565,7.98730751,4166.9,4166.5,0.15806252]
[1760341594765,7.98730751,4166.9,4166.6,0.4317]
[1760341594966,7.98730751,4166.9,4166.5,0.15806252]
[1760341595164,3.2078,4166.6,4166.5,0.56006252]
[1760341595461,6.35590482,4166.6,4165.9,0.83377]
[1760341595662,4.80956171,4166.3,4166.2,0.402]
[1760341595866,3.2078,4166.1,4165.7,0.402]
[1760341596063,4.80956171,4165.8,4165.7,0.402]
[1760341596366,4.80956171,4165.8,4165.2,0.24008163]
[1760341596367,7.94508171,4165.8,4165.2,0.24008163]
[1760341596565,8.01736171,4165.3,4164.5,0.5573]
[1760341596860,4.80956171,4164.6,4164.5,0.5573]
[1760341597067,3.2078,4164.8,4164.7,0.402]
[1760341597263,0.00169033,4166.6,4165.3,0.402]
[1760341597264,3.2078,4165.4,4165.3,0.402]
[1760341597463,3.2078,4165.9,4165.8,0.83378]
[1760341597659,3.2078,4165.9,4165.8,0.00234032]
[1760341597860,6.36927672,4165.9,4165.8,0.83612032]
[1760341598163,0.00169033,4166.6,4166.5,0.98901]
[1760341598367,0.00169033,4166.6,4166.2,0.83374]
[1760341598570,3.2078,4166.3,4166.2,0.83374]
[1760341598766,3.17290723,4166.6,4166.5,0.58701]
[1760341598967,0.00169033,4166.6,4166.5,0.98901]
[1760341599171,8.01736171,4167.2,4166.5,0.98901]
[1760341599172,3.2078,4167.2,4167.1,0.83365]
[1760341599361,3.2078,4167.2,4167.1,0.402]
[1760341599666,6.33147641,4167.2,4166.5,0.1553]
[1760341599869,8.01736171,4166.6,4166.0,0.1553]
[1760341600174,8.01736171,4166.1,4165.9,0.83376]
[1760341600373,8.01736171,4166.1,4165.9,0.402]
[1760341600575,3.08961014,4166.0,4165.9,0.83377]
[1760341600775,3.08961014,4166.0,4165.8,0.00234032]
[1760341600776,3.21019947,4166.6,4166.5,0.1553]
[1760341600972,3.2078,4167.1,4167.0,0.98896]
[1760341601172,3.2078,4168.2,4167.4,0.402]
[1760341601383,3.2078,4168.2,4168.1,0.402]
[1760341601976,6.35729674,4168.2,4168.1,0.402]
[1760341602173,3.2096422,4168.2,4168.1,0.402]
[1760341602373,3.2096422,4168.2,4167.2,0.402]
[1760341602573,3.2078,4167.7,4166.8,3.6098]
[1760341602778,3.2078,4167.7,4167.3,0.83362]
[1760341602979,3.16624641,4167.6,4166.9,0.43166]
[1760341603176,3.16624641,4167.6,4166.8,3.6098]
[1760341603374,3.16624641,4167.6,4167.4,0.83361]
[1760341603576,3.16624641,4167.6,4167.5,0.402]
[1760341603781,3.16624641,4167.6,4166.8,3.6098]
[1760341603982,3.16624641,4167.6,4166.6,0.43169]
[1760341603983,3.2078,4167.2,4166.6,0.43169]
[1760341604183,3.2078,4166.7,4165.8,3.21014032]
[1760341604378,3.2078,4166.2,4165.9,0.402]
[1760341604584,5.45290262,4166.6,4165.8,0.43412032]
[1760341604585,3.09073837,4166.6,4166.5,0.5573]
[1760341604879,5.45290262,4167.2,4166.5,0.5573]
[1760341604880,8.66070262,4167.2,4166.5,0.5573]
[1760341605078,3.2078,4167.2,4167.1,0.503]
[1760341605282,3.2096422,4168.2,4167.6,0.503]
[1760341605579,3.2096422,4168.2,4167.6,0.9346]
[1760341605580,3.11936321,4167.7,4167.6,0.9346]
[1760341605978,3.2096422,4168.2,4167.5,0.1958]
[1760341606175,3.2096422,4168.2,4168.1,0.503]
[1760341606682,0.0018422,4168.2,4168.1,0.503]
[1760341607184,11.76962326,4168.2,4167.4,0.503]
[1760341607385,3.2078,4167.6,4167.0,0.1958]
[1760341607677,3.12243705,4167.5,4167.4,0.43162]
[1760341607879,3.12243705,4167.5,4167.4,0.93462]
[1760341608087,3.2096422,4168.2,4167.1,0.503]
[1760341608279,0.43156,4168.0,4167.1,0.503]
[1760341608475,0.43156,4168.0,4167.3,0.43163]
[1760341608676,3.07336955,4167.9,4167.5,0.4316]
[1760341608876,3.07336955,4167.9,4167.5,0.1958]
[1760341609083,3.07336955,4168.0,4167.3,0.43162]
[1760341609382,3.2078,4167.7,4167.6,0.503]
[1760341609683,3.08519859,4167.9,4167.6,0.503]
[1760341609890,3.08519859,4167.9,4167.7,0.91589]
[1760341610080,3.08519859,4168.1,4168.0,0.43155]
[1760341610282,3.2096422,4168.2,4168.0,0.62875]
[1760341610478,0.43136,4170.0,4168.0,0.62875]
[1760341610479,3.2078,4169.4,4169.3,0.43142]
[1760341610675,3.2078,4169.4,4169.3,0.91572]
[1760341610973,3.13833681,4169.4,4169.3,4.12352]
[1760341611182,3.2078,4169.9,4169.7,0.43137]
[1760341611379,3.21016793,4169.9,4169.8,0.4843]
[1760341611576,0.00236793,4169.9,4169.8,0.4843]
[1760341614074,0.00236793,4169.9,4169.8,3.6921]
[1760341616581,0.00236793,4169.9,4169.8,0.4843]
[1760341619684,3.2078,4171.1,4170.0,0.1972]
[1760341619989,3.2078,4171.1,4171.0,0.4843]
[1760341620381,6.30049605,4171.1,4171.0,0.4843]
[1760341620576,6.30049605,4171.1,4170.9,0.43125]
[1760341620790,6.30353338,4171.1,4170.9,0.43125]
[1760341620991,6.73477338,4171.1,4170.5,0.43129]
[1760341621178,6.73477338,4171.1,4170.4,0.9156]
[1760341621179,3.2078,4170.6,4170.4,0.9156]
[1760341621378,3.2078,4170.6,4170.5,0.4843]
[1760341621583,3.2078,4170.6,4170.5,0.6815]
[1760341621887,6.33412626,4170.6,4170.5,0.6815]
[1760341623090,11.78702888,4170.6,4170.3,0.43131]
[1760341623386,11.78702888,4170.6,4169.5,0.1972]
[1760341623586,5.45290262,4170.0,4169.6,0.4843]
[1760341623891,3.14582089,4169.9,4169.1,0.4843]
[1760341624085,3.14582089,4169.9,4169.4,0.4314]
[1760341624291,3.57718089,4169.9,4169.4,0.4314]
[1760341624781,3.57718089,4169.9,4169.1,0.4843]
[1760341625090,3.14582089,4169.9,4169.8,0.91567]
[1760341625291,3.2078,4170.1,4170.0,1.11285]
[1760341625987,6.28744787,4170.1,4170.0,0.6815]
[1760341627191,0.43136,4169.9,4168.8,0.4843]
[1760341627391,5.88426262,4169.9,4169.3,0.4843]
[1760341627591,3.09280979,4169.8,4168.6,3.2078]
[1760341627796,3.09280979,4169.8,4168.8,0.4843]
[1760341627992,3.09280979,4169.8,4169.2,0.4843]
[1760341628194,3.09280979,4169.8,4169.7,0.91793768]
[1760341628499,3.59541422,4170.0,4169.7,0.91793768]
[1760341628800,0.43135,4170.0,4169.7,0.91793768]
[1760341628991,3.16406422,4169.9,4169.7,0.48655768]
[1760341629192,3.59543422,4169.9,4169.7,0.48655768]
[1760341629499,0.43137,4169.9,4169.7,0.00225768]
[1760341629695,3.13209293,4170.0,4169.7,0.00225768]
[1760341629992,3.13209293,4169.8,4168.7,0.4843]
[1760341630196,0.43153,4168.3,4168.0,1.25944786]
[1760341630397,5.45290262,4168.1,4167.3,1.25944786]
[1760341630694,0.43163,4167.3,4166.5,0.6815]
[1760341631091,5.88460262,4166.6,4166.5,0.00277628]
[1760341631289,5.45290262,4166.6,4166.5,0.00277628]
[1760341631496,8.5940832,4166.6,4166.5,0.00277628]
[1760341632300,8.5940832,4166.6,4165.4,0.4843]
[1760341632301,0.43178,4165.9,4165.4,0.4843]
[1760341632592,3.16486693,4165.8,4165.5,3.405]
[1760341632805,3.16486693,4165.8,4165.7,0.4843]
[1760341632992,3.16486693,4166.5,4166.4,0.4843]
[1760341633190,0.00197837,4167.3,4167.0,0.1972]
[1760341633394,0.00197837,4167.3,4167.1,0.43165]
[1760341633600,0.00197837,4167.3,4167.2,0.4843]
[1760341635495,5.45290262,4168.6,4167.2,0.4843]
[1760341635697,5.45290262,4168.6,4167.9,0.43156]
[1760341635895,3.04802126,4168.3,4168.0,0.1972]
[1760341636199,3.63933,4168.3,4167.6,0.4843]
[1760341636396,3.21010424,4168.3,4168.0,0.1972]
[1760341636592,3.21010424,4168.3,4168.1,0.4843]
[1760341636593,3.07671107,4168.2,4168.1,0.4843]
[1760341637095,3.07671107,4168.2,4167.6,0.4843]
[1760341637398,3.2078,4167.8,4167.5,0.1972]
[1760341637593,3.2078,4167.8,4167.6,0.4843]
[1760341637795,3.21010424,4168.3,4168.2,0.4843]
[1760341638102,0.00230424,4168.3,4168.2,0.4843]
[1760341638496,6.70423657,4168.3,4167.7,0.4843]
[1760341638701,3.2078,4167.8,4167.7,0.4843]
[1760341639102,0.43159,4167.7,4167.5,0.1972]
[1760341639504,3.13529485,4167.6,4167.2,0.43164]
[1760341639805,3.13529485,4167.6,4167.0,0.6815]
[1760341639806,0.4316,4167.6,4167.0,0.6815]
[1760341640102,0.43164,4167.2,4167.0,0.6815]
[1760341640303,3.2078,4167.3,4167.1,0.4987]
[1760341640498,3.2078,4167.3,4167.2,0.93034]
[1760341640700,5.45290262,4168.0,4167.7,0.4987]
[1760341640908,5.45290262,4168.0,4167.5,0.204]
[1760341641207,3.2078,4167.6,4167.5,0.7027]
[1760341641606,0.43162,4167.4,4167.0,0.1972]
[1760341641910,3.12890759,4167.3,4167.1,0.4987]
[1760341642111,3.56053759,4167.3,4167.1,0.4987]
[1760341642705,3.12890759,4167.3,4167.0,0.1972]
[1760341642911,3.12890759,4167.3,4167.1,0.4987]
[1760341643605,3.07224419,4167.5,4167.2,0.43164]
[1760341643812,8.66070262,4167.6,4167.3,0.4987]
[1760341643813,3.2078,4167.6,4167.3,0.4987]
[1760341644312,3.2078,4167.6,4167.4,0.93032]
[1760341644313,3.07224419,4167.5,4167.4,0.93032]
[1760341644905,3.07224419,4167.5,4167.0,0.1972]
[1760341645105,3.07224419,4167.5,4167.2,0.4987]
[1760341645410,5.45290262,4167.3,4166.5,0.6959]
[1760341645608,5.45290262,4166.7,4166.5,0.6959]
[1760341645808,5.45290262,4166.7,4166.4,0.50052248]
[1760341646112,3.19098443,4166.6,4166.4,0.50052248]
[1760341646312,3.62268443,4166.6,4166.4,0.00182248]
[1760341646807,3.19098443,4166.6,4166.4,0.00182248]
[1760341647010,3.19098443,4166.6,4166.5,1.13441]
[1760341647314,3.17207134,4166.7,4166.5,0.7027]
[1760341647515,3.17207134,4166.7,4166.6,0.4987]
[1760341647716,3.2078,4166.8,4166.6,0.4317]
[1760341647914,3.2078,4166.8,4166.7,0.4987]
[1760341648910,3.2078,4167.3,4167.2,0.93034]
[1760341650321,3.2078,4167.3,4167.0,0.7027]
[1760341650322,0.43164,4167.2,4167.0,0.7027]
[1760341650609,3.2078,4167.3,4167.1,0.4987]
[1760341650814,3.2078,4167.8,4167.7,0.93029]
[1760341651610,3.2078,4167.8,4167.7,0.4987]
[1760341654010,0.43161,4167.5,4167.0,0.204]
[1760341654212,3.2078,4167.3,4167.1,0.4987]
[1760341654607,3.06034388,4167.2,4167.1,0.4987]
[1760341655632,3.06034388,4167.2,4166.5,0.7027]
[1760341655633,0.43166,4167.0,4166.5,0.7027]
[1760341655913,3.2078,4166.8,4166.6,0.4987]
[1760341656414,1.93382333,4168.3,4167.0,1.13436]
[1760341656415,3.0881581,4167.1,4167.0,1.13436]
[1760341656610,3.21010424,4168.3,4167.5,0.204]
[1760341656812,3.12973764,4168.2,4168.1,0.93024]
[1760341657009,3.21010424,4168.3,4168.1,0.4987]
[1760341657818,0.00230424,4168.3,4168.2,0.4987]
[1760341659317,0.00230424,4168.3,4168.2,1.78367346]
[1760341659917,0.00230424,4168.3,4168.2,0.4987]
[1760341660512,3.21010424,4168.3,4168.2,0.4987]
[1760341661214,3.21010424,4168.3,4168.1,0.43154]
[1760341661414,7.16316209,4168.3,4167.5,1.98767346]
[1760341661610,7.16316209,4168.3,4167.5,0.4987]
[1760341661611,3.2078,4167.7,4167.5,0.4987]
[1760341662119,3.2078,4167.7,4167.0,5.19547346]
[1760341662414,0.4721,4167.1,4166.7,1.78367346]
[1760341662614,0.4721,4167.1,4166.7,0.4987]
[1760341662917,3.62527539,4167.0,4166.5,0.6357]
[1760341663318,4.84200571,4166.7,4166.5,0.4987]
[1760341663521,4.84200571,4166.7,4166.5,0.4317]
[1760341663720,4.84200571,4166.7,4166.6,0.4987]
[1760341663919,3.12221986,4166.9,4166.5,0.4317]
[1760341663920,3.2078,4167.2,4166.5,0.204]
[1760341664117,3.2078,4167.2,4167.1,0.93035]
[1760341664524,3.2078,4167.2,4167.1,0.4987]
[1760341664822,8.04980571,4167.2,4166.7,0.43169]
[1760341665018,8.48144571,4167.2,4166.7,0.43169]
[1760341665214,0.43168,4166.9,4166.5,0.204]
[1760341665410,3.16623608,4167.1,4166.5,0.204]
[1760341665411,4.84200571,4166.6,4166.5,0.5093]
[1760341665614,5.27370571,4166.6,4166.4,0.00182248]
[1760341665814,8.45797087,4166.6,4166.4,0.00182248]
[1760341666015,0.4615,4166.5,4166.4,0.00182248]
[1760341666319,0.4615,4166.0,4165.6,0.4318]
[1760341666513,3.2078,4165.9,4165.6,0.5093]
[1760341666719,3.2078,4165.9,4165.5,0.204]
[1760341667225,3.2078,4165.9,4165.8,0.5093]
[1760341669724,0.89108,4165.8,4165.5,0.47095105]
[1760341669916,6.30916084,4165.9,4165.6,0.4686]
[1760341670112,0.43178,4165.8,4165.6,0.4686]
[1760341670317,3.16407263,4165.8,4165.7,0.90039]
[1760341670628,3.2078,4166.5,4165.8,0.4686]
[1760341670828,3.2078,4166.5,4166.4,0.90032]
[1760341671226,3.2078,4167.0,4166.5,0.1885]
[1760341671526,3.2078,4167.0,4166.9,0.90027]
[1760341672219,8.04980571,4167.0,4166.7,0.90029]
[1760341672423,0.4947,4166.9,4166.7,0.43169]
[1760341672617,0.4947,4166.9,4166.5,0.4317]
[1760341672618,3.61311282,4166.9,4166.5,0.4317]
[1760341672819,0.4947,4166.7,4166.5,0.4317]
[1760341673018,0.43172,4166.5,4165.9,1.2868982]
[1760341673319,0.4947,4166.4,4166.3,0.43173]
[1760341673516,0.4947,4166.4,4165.5,0.19085105]
[1760341673517,0.4947,4166.4,4165.5,1.28924925]
[1760341673719,0.1977,4165.5,4164.9,1.69527091]
[1760341673922,0.43192,4164.5,4164.1,1.69527091]
[1760341674227,8.47157258,4164.4,4164.0,0.4686]
[1760341674424,8.01227258,4164.4,4163.6,0.4686]
[1760341674623,0.43194,4164.3,4163.6,0.4686]
[1760341674823,6.37985466,4164.4,4163.7,0.4686]
[1760341675025,6.37985466,4164.4,4163.6,0.00195133]
[1760341675026,3.20958779,4164.4,4164.3,0.4686]
[1760341675327,2.34260931,4166.3,4164.3,0.4686]
[1760341675328,3.2078,4164.9,4164.8,0.43189]
[1760341675526,3.2078,4165.4,4165.3,0.43183]
[1760341675726,3.16316818,4166.0,4165.8,0.43178]
[1760341675926,3.2078,4166.2,4166.1,0.4686]
[1760341676421,8.04980571,4166.8,4166.6,0.43169]
[1760341676616,8.05166254,4166.8,4166.7,0.4686]
[1760341676820,3.20965683,4166.8,4166.7,0.4686]
[1760341677024,0.4947,4166.7,4165.8,3.2078]
[1760341677222,0.4947,4166.7,4164.1,3.2078]
[1760341677223,0.4947,4165.4,4164.1,3.2078]
[1760341677424,3.2078,4166.2,4165.6,0.43179]
[1760341677627,3.2078,4166.2,4165.6,0.4318]
[1760341677824,3.2078,4166.2,4165.0,0.1885]
[1760341678131,3.11228101,4166.1,4165.3,0.43183]
[1760341678329,3.11228101,4166.1,4165.0,0.1885]
[1760341678521,3.11228101,4166.1,4165.8,0.43177]
[1760341678723,3.11228101,4166.1,4165.1,3.2078]
[1760341678926,3.2078,4166.7,4166.0,0.1885]
[1760341679224,0.00185683,4166.8,4166.6,0.4686]
[1760341679431,0.00185683,4166.8,4166.7,0.90029]
[1760341680125,0.00185683,4166.8,4166.7,0.4686]
[1760341682725,0.4947,4166.4,4165.6,0.4686]
[1760341682925,6.27345896,4166.8,4166.5,0.4317]
[1760341683131,0.00185683,4166.8,4166.6,0.4686]
[1760341683333,0.43182,4165.5,4165.2,3.2078]
[1760341683542,0.4947,4165.3,4165.0,0.00229789]
[1760341683827,0.4947,4165.6,4165.0,0.00229789]
[1760341684025,3.2078,4165.7,4165.0,0.00229789]
[1760341684026,0.4947,4165.4,4165.0,0.00229789]
[1760341684224,3.31394235,4165.5,4165.0,0.00229789]
[1760341684425,3.11624235,4165.3,4165.0,0.00229789]
[1760341684637,3.57151511,4165.4,4165.0,0.00229789]
[1760341684823,0.43184,4165.3,4165.0,0.00229789]
[1760341685028,0.4947,4165.1,4165.0,0.00229789]
[1760341685232,3.7025,4165.1,4165.0,0.00229789]
[1760341685431,6.84219511,4165.1,4165.0,0.00229789]
[1760341685636,3.2078,4165.1,4165.0,1.09126789]
[1760341685927,3.7025,4165.7,4165.0,0.47089789]
[1760341686127,3.7025,4165.7,4165.1,0.43185]
[1760341686332,3.7025,4165.7,4165.0,0.00229789]
[1760341686333,6.20000438,4165.2,4165.0,0.00229789]
[1760341686526,0.1977,4165.0,4164.3,0.43193]
[1760341686831,3.63338209,4164.9,4164.4,0.43192]
[1760341687030,3.63338209,4164.9,4164.0,0.24015369]
[1760341687031,0.4947,4164.8,4164.0,0.24015369]
[1760341687232,3.13868209,4164.9,4164.6,0.4319]
[1760341687436,3.63338209,4164.7,4164.6,0.4319]
[1760341687734,0.4947,4164.7,4164.6,0.4319]
[1760341687940,0.4947,4164.7,4164.6,0.4339821]
[1760341688938,9.40780438,4165.2,4164.7,0.43189]
[1760341689140,3.2078,4165.2,4164.6,0.0020821]
[1760341689336,0.4947,4165.0,4164.8,0.43188]
[1760341689638,3.10438228,4165.1,4164.6,0.0020821]
[1760341689639,3.63965,4165.2,4164.6,0.0020821]
[1760341689837,3.0587976,4164.9,4164.6,0.0020821]
[1760341690137,3.6883676,4165.0,4164.6,0.0020821]
[1760341690334,0.62957,4165.0,4164.6,0.0020821]
[1760341690543,0.4947,4164.7,4164.6,0.0020821]
[1760341690837,3.2078,4165.6,4164.9,0.4686]
[1760341691041,3.2078,4165.6,4165.4,0.43182]
[1760341691340,3.2078,4165.6,4165.4,0.90042]
[1760341691838,3.2078,4165.6,4165.5,0.4686]
[1760341692144,3.2078,4166.3,4165.5,0.6571]
[1760341692640,3.17755218,4166.2,4165.5,0.6571]
[1760341692829,3.17755218,4166.2,4166.0,0.43175]
[1760341693033,3.67225218,4166.2,4166.0,0.43175]
[1760341693233,0.4947,4166.2,4166.0,0.43175]
[1760341693444,3.7025,4166.3,4165.5,0.4686]
[1760341693635,3.04847098,4166.1,4165.0,1.26815]
[1760341693944,3.09024897,4166.2,4165.2,1.07962]
[1760341694133,0.1977,4166.0,4164.8,3.2078]
[1760341694338,0.1977,4166.0,4163.8,1.07997]
[1760341694339,0.1977,4164.5,4164.4,0.15387091]
[1760341694636,0.1977,4164.5,4162.8,4.21744678]
[1760341694637,0.43201,4163.7,4162.8,0.45611229]
[1760341694845,0.43202,4163.6,4163.0,0.1885]
[1760341695040,0.43203,4163.5,4163.1,0.4686]
[1760341695230,0.43206,4163.2,4163.0,0.1885]
[1760341695438,3.2078,4163.1,4163.0,0.00305871]
[1760341695747,6.2850181,4163.1,4163.0,0.00305871]
[1760341696341,3.0772181,4163.1,4163.0,0.66015871]
[1760341696547,3.21084375,4163.6,4163.5,0.1885]
[1760341696843,0.00304375,4163.6,4163.5,0.6571]
[1760341697243,6.40328545,4163.6,4163.5,0.6571]
[1760341697638,0.43204,4163.3,4163.0,0.19155871]
[1760341697838,3.2078,4163.1,4163.0,0.19155871]
[1760341698042,3.2078,4163.1,4163.0,0.66015871]
[1760341698338,6.25957558,4163.1,4163.0,0.66015871]
[1760341699343,11.11039605,4163.1,4163.0,0.66015871]
[1760341700737,6.25957558,4163.1,4163.0,0.66015871]
[1760341700942,8.06166422,4163.6,4163.5,1.15402]
[1760341701135,8.06166422,4163.6,4163.5,0.722]
[1760341701332,11.21511528,4163.6,4163.5,0.1989]
[1760341701536,11.21511528,4163.6,4163.1,0.95516]
[1760341701737,11.21511528,4163.6,4163.2,0.5231]
[1760341702441,11.21511528,4163.6,4163.1,0.43206]
[1760341702442,11.21511528,4163.6,4163.1,0.5231]
[1760341702642,11.21511528,4163.6,4163.5,0.722]
[1760341703050,6.36429481,4163.6,4163.5,0.783]
[1760341703448,3.21084375,4163.6,4163.5,0.783]